{"text_format":"1","workbook":"xlsx","n_sheets":2,"sheets":["YYYY Tournament Name","Variables"],"not_rendered":{"charts":0,"images":5,"macros":1,"external_links":0,"defined_names":2,"comments":0,"pivot_tables":0},"unopened":[],"bounds":{"document_bytes":16777216,"sheet_cells":100000,"rows_first":2000,"rows_last":500,"rows_between":2000,"halvings":0,"cell_chars":16384,"cell_head_chars":4096},"cells_cut":0,"cells_raw":0,"read":"whole","date_system":"1900"}

{"sheet":"YYYY Tournament Name","index":0,"n_rows":69,"n_cols":55,"rows_kept":69,"cut":false,"hidden":false,"merged":[]}
[null,"First Name","Last Name","Team Name","Division","TOT","Team Total / Rate","ERR","Tot Quiz","Q01","S01 / E01","Q02","S02 / E02","Q03","S03 / E03","Q04","S04 / E04","Q05","S05 / E05","Q06","S0\\6 / E06","Q07","E07","Q08","E08","Q09","E09","Q10","E10","Q11","E11","Q12","E12","Q13","E13","Q14","E14","Q15","E15","Q16","E16","Q17","E17","Q18","E18","Q19","E19","Q20","E20","Q21","E21","# Quiz w/ Positive Points","# Quiz Outs w/o error","Highest Points in a Quiz","# Correct 20 point Questions"]
[1,null,null,null,"Var Coach",{"$f":"SUM(J2+L2+N2+P2+R2+T2+V2+X2+Z2+AB2+AD2+AF2+AH2+AJ2+AL2+AN2+AP2+AR2+AT2+AV2+AX2)","v":0},{"$f":"SUM(K2+M2+O2+Q2+S2+U2+W2+Y2+AA2+AC2+AE2+AG2)","v":0},{"$f":"SUM(K2+M2+O2+Q2+S2+U2+W2+Y2+AA2+AC2+AE2+AG2+AI2+AK2+AM2+AO2+AQ2+AS2+AU2+AW2+AY2)","v":0},{"$f":"COUNTA(J2:AY2)/2","v":0},null,null,null,null,null,null,null,null,null,null,null,null,null,null,null,null,null,null,null,null,null,null,null,null,null,null,null,null,null,null,null,null,null,null,null,null,null,null,null,null,null,null,{"$f":"IF(J2-K2*10>0,1,0)+IF(L2-M2*10>0,1,0)+IF(N2-O2*10>0,1,0)+IF(P2-Q2*10>0,1,0)+IF(R2-S2*10>0,1,0)+IF(T2-U2*10>0,1,0)","v":0},{"$f":"COUNTIF(J2,90)+COUNTIF(L2,90)+COUNTIF(N2,90)+COUNTIF(P2,90)+COUNTIF(R2,90)+COUNTIF(T2,90)","v":0},{"$f":"MAX(J2,L2,N2,P2,R2,T2)","v":0},{"$f":"TRUNC(J2/20,0)+TRUNC(L2/20)+TRUNC(N2/20)+TRUNC(P2/20)+TRUNC(R2/20)+TRUNC(T2/20)","v":0}]
[2,null,null,null,"Var Coach",{"$f":"SUM(J3+L3+N3+P3+R3+T3+V3+X3+Z3+AB3+AD3+AF3+AH3+AJ3+AL3+AN3+AP3+AR3+AT3+AV3+AX3)","v":0},{"$f":"SUM(K3+M3+O3+Q3+S3+U3+W3+Y3+AA3+AC3+AE3+AG3)","v":0},{"$f":"SUM(K3+M3+O3+Q3+S3+U3+W3+Y3+AA3+AC3+AE3+AG3+AI3+AK3+AM3+AO3+AQ3+AS3+AU3+AW3+AY3)","v":0},{"$f":"COUNTA(J3:AY3)/2","v":0},null,null,null,null,null,null,null,null,null,null,null,null,null,null,null,null,null,null,null,null,null,null,null,null,null,null,null,null,null,null,null,null,null,null,null,null,null,null,null,null,null,null,{"$f":"IF(J3-K3*10>0,1,0)+IF(L3-M3*10>0,1,0)+IF(N3-O3*10>0,1,0)+IF(P3-Q3*10>0,1,0)+IF(R3-S3*10>0,1,0)+IF(T3-U3*10>0,1,0)","v":0},{"$f":"COUNTIF(J3,90)+COUNTIF(L3,90)+COUNTIF(N3,90)+COUNTIF(P3,90)+COUNTIF(R3,90)+COUNTIF(T3,90)","v":0},{"$f":"MAX(J3,L3,N3,P3,R3,T3)","v":0},{"$f":"TRUNC(J3/20,0)+TRUNC(L3/20)+TRUNC(N3/20)+TRUNC(P3/20)+TRUNC(R3/20)+TRUNC(T3/20)","v":0}]
[3,null,null,null,"Var Coach",0,0,0,0,null,null,null,null,null,null,null,null,null,null,null,null,null,null,null,null,null,null,null,null,null,null,null,null,null,null,null,null,null,null,null,null,null,null,null,null,null,null,null,null,null,null,0,0,0,0]
[4,null,null,null,"Var Coach",0,0,0,0,null,null,null,null,null,null,null,null,null,null,null,null,null,null,null,null,null,null,null,null,null,null,null,null,null,null,null,null,null,null,null,null,null,null,null,null,null,null,null,null,null,null,0,0,0,0]
[5,null,null,null,"Var Coach",{"$f":"SUM(J6+L6+N6+P6+R6+T6+V6+X6+Z6+AB6+AD6+AF6+AH6+AJ6+AL6+AN6+AP6+AR6+AT6+AV6+AX6)","v":0},{"$f":"SUM(K6+M6+O6+Q6+S6+U6+W6+Y6+AA6+AC6+AE6+AG6)","v":0},{"$f":"SUM(K6+M6+O6+Q6+S6+U6+W6+Y6+AA6+AC6+AE6+AG6+AI6+AK6+AM6+AO6+AQ6+AS6+AU6+AW6+AY6)","v":0},{"$f":"COUNTA(J6:AY6)/2","v":0},null,null,null,null,null,null,null,null,null,null,null,null,null,null,null,null,null,null,null,null,null,null,null,null,null,null,null,null,null,null,null,null,null,null,null,null,null,null,null,null,null,null,{"$f":"IF(J6-K6*10>0,1,0)+IF(L6-M6*10>0,1,0)+IF(N6-O6*10>0,1,0)+IF(P6-Q6*10>0,1,0)+IF(R6-S6*10>0,1,0)+IF(T6-U6*10>0,1,0)","v":0},{"$f":"COUNTIF(J6,90)+COUNTIF(L6,90)+COUNTIF(N6,90)+COUNTIF(P6,90)+COUNTIF(R6,90)+COUNTIF(T6,90)","v":0},{"$f":"MAX(J6,L6,N6,P6,R6,T6)","v":0},{"$f":"TRUNC(J6/20,0)+TRUNC(L6/20)+TRUNC(N6/20)+TRUNC(P6/20)+TRUNC(R6/20)+TRUNC(T6/20)","v":0}]
[6,null,null,null,"Var Coach",{"$f":"SUM(J7+L7+N7+P7+R7+T7+V7+X7+Z7+AB7+AD7+AF7+AH7+AJ7+AL7+AN7+AP7+AR7+AT7+AV7+AX7)","v":0},{"$f":"SUM(K7+M7+O7+Q7+S7+U7+W7+Y7+AA7+AC7+AE7+AG7)","v":0},{"$f":"SUM(K7+M7+O7+Q7+S7+U7+W7+Y7+AA7+AC7+AE7+AG7+AI7+AK7+AM7+AO7+AQ7+AS7+AU7+AW7+AY7)","v":0},{"$f":"COUNTA(J7:AY7)/2","v":0},null,null,null,null,null,null,null,null,null,null,null,null,null,null,null,null,null,null,null,null,null,null,null,null,null,null,null,null,null,null,null,null,null,null,null,null,null,null,null,null,null,null,{"$f":"IF(J7-K7*10>0,1,0)+IF(L7-M7*10>0,1,0)+IF(N7-O7*10>0,1,0)+IF(P7-Q7*10>0,1,0)+IF(R7-S7*10>0,1,0)+IF(T7-U7*10>0,1,0)","v":0},{"$f":"COUNTIF(J7,90)+COUNTIF(L7,90)+COUNTIF(N7,90)+COUNTIF(P7,90)+COUNTIF(R7,90)+COUNTIF(T7,90)","v":0},{"$f":"MAX(J7,L7,N7,P7,R7,T7)","v":0},{"$f":"TRUNC(J7/20,0)+TRUNC(L7/20)+TRUNC(N7/20)+TRUNC(P7/20)+TRUNC(R7/20)+TRUNC(T7/20)","v":0}]
[7,null,null,null,"Var Coach",0,0,0,0,null,null,null,null,null,null,null,null,null,null,null,null,null,null,null,null,null,null,null,null,null,null,null,null,null,null,null,null,null,null,null,null,null,null,null,null,null,null,null,null,null,null,0,0,0,0]
[8,null,null,null,"Var Coach",0,0,0,0,null,null,null,null,null,null,null,null,null,null,null,null,null,null,null,null,null,null,null,null,null,null,null,null,null,null,null,null,null,null,null,null,null,null,null,null,null,null,null,null,null,null,0,0,0,0]
[9,null,null,null,"Var Coach",{"$f":"SUM(J10+L10+N10+P10+R10+T10+V10+X10+Z10+AB10+AD10+AF10+AH10+AJ10+AL10+AN10+AP10+AR10+AT10+AV10+AX10)","v":0},{"$f":"SUM(K10+M10+O10+Q10+S10+U10+W10+Y10+AA10+AC10+AE10+AG10)","v":0},{"$f":"SUM(K10+M10+O10+Q10+S10+U10+W10+Y10+AA10+AC10+AE10+AG10+AI10+AK10+AM10+AO10+AQ10+AS10+AU10+AW10+AY10)","v":0},{"$f":"COUNTA(J10:AY10)/2","v":0},null,null,null,null,null,null,null,null,null,null,null,null,null,null,null,null,null,null,null,null,null,null,null,null,null,null,null,null,null,null,null,null,null,null,null,null,null,null,null,null,null,null,{"$f":"IF(J10-K10*10>0,1,0)+IF(L10-M10*10>0,1,0)+IF(N10-O10*10>0,1,0)+IF(P10-Q10*10>0,1,0)+IF(R10-S10*10>0,1,0)+IF(T10-U10*10>0,1,0)","v":0},{"$f":"COUNTIF(J10,90)+COUNTIF(L10,90)+COUNTIF(N10,90)+COUNTIF(P10,90)+COUNTIF(R10,90)+COUNTIF(T10,90)","v":0},{"$f":"MAX(J10,L10,N10,P10,R10,T10)","v":0},{"$f":"TRUNC(J10/20,0)+TRUNC(L10/20)+TRUNC(N10/20)+TRUNC(P10/20)+TRUNC(R10/20)+TRUNC(T10/20)","v":0}]
[10,null,null,null,"Var Coach",0,0,0,0,null,null,null,null,null,null,null,null,null,null,null,null,null,null,null,null,null,null,null,null,null,null,null,null,null,null,null,null,null,null,null,null,null,null,null,null,null,null,null,null,null,null,0,0,0,0]
[11,null,null,null,"Var Coach",0,0,0,0,null,null,null,null,null,null,null,null,null,null,null,null,null,null,null,null,null,null,null,null,null,null,null,null,null,null,null,null,null,null,null,null,null,null,null,null,null,null,null,null,null,null,0,0,0,0]
[12,null,null,null,"Var Coach",0,0,0,0,null,null,null,null,null,null,null,null,null,null,null,null,null,null,null,null,null,null,null,null,null,null,null,null,null,null,null,null,null,null,null,null,null,null,null,null,null,null,null,null,null,null,0,0,0,0]
[1,null,null,null,"Var Quizzer",0,{"$f":"SUM(((F14)-(H14*10))/I14)","v":{"$error":"#DIV/0!"}},0,{"$f":"(COUNTA(J14:AY14)/2)","v":0},null,null,null,null,null,null,null,null,null,null,null,null,null,null,null,null,null,null,null,null,null,null,null,null,null,null,null,null,null,null,null,null,null,null,null,null,null,null,null,null,null,null,0,0,0,0]
[2,null,null,null,"Var Quizzer",0,{"$error":"#DIV/0!"},0,0,null,null,null,null,null,null,null,null,null,null,null,null,null,null,null,null,null,null,null,null,null,null,null,null,null,null,null,null,null,null,null,null,null,null,null,null,null,null,null,null,null,null,0,0,0,0]
[3,null,null,null,"Var Quizzer",0,{"$error":"#DIV/0!"},0,0,null,null,null,null,null,null,null,null,null,null,null,null,null,null,null,null,null,null,null,null,null,null,null,null,null,null,null,null,null,null,null,null,null,null,null,null,null,null,null,null,null,null,0,0,0,0]
[4,null,null,null,"Var Quizzer",0,{"$error":"#DIV/0!"},0,0,null,null,null,null,null,null,null,null,null,null,null,null,null,null,null,null,null,null,null,null,null,null,null,null,null,null,null,null,null,null,null,null,null,null,null,null,null,null,null,null,null,null,0,0,0,0]
[5,null,null,null,"Var Quizzer",0,{"$error":"#DIV/0!"},0,0,null,null,null,null,null,null,null,null,null,null,null,null,null,null,null,null,null,null,null,null,null,null,null,null,null,null,null,null,null,null,null,null,null,null,null,null,null,null,null,null,null,null,0,0,0,0]
[6,null,null,null,"Var Quizzer",0,{"$error":"#DIV/0!"},0,0,null,null,null,null,null,null,null,null,null,null,null,null,null,null,null,null,null,null,null,null,null,null,null,null,null,null,null,null,null,null,null,null,null,null,null,null,null,null,null,null,null,null,0,0,0,0]
[7,null,null,null,"Var Quizzer",0,{"$error":"#DIV/0!"},0,0,null,null,null,null,null,null,null,null,null,null,null,null,null,null,null,null,null,null,null,null,null,null,null,null,null,null,null,null,null,null,null,null,null,null,null,null,null,null,null,null,null,null,0,0,0,0]
[8,null,null,null,"Var Quizzer",0,{"$error":"#DIV/0!"},0,0,null,null,null,null,null,null,null,null,null,null,null,null,null,null,null,null,null,null,null,null,null,null,null,null,null,null,null,null,null,null,null,null,null,null,null,null,null,null,null,null,null,null,0,0,0,0]
[9,null,null,null,"Var Quizzer",0,{"$error":"#DIV/0!"},0,0,null,null,null,null,null,null,null,null,null,null,null,null,null,null,null,null,null,null,null,null,null,null,null,null,null,null,null,null,null,null,null,null,null,null,null,null,null,null,null,null,null,null,0,0,0,0]
[10,null,null,null,"Var Quizzer",0,{"$error":"#DIV/0!"},0,0,null,null,null,null,null,null,null,null,null,null,null,null,null,null,null,null,null,null,null,null,null,null,null,null,null,null,null,null,null,null,null,null,null,null,null,null,null,null,null,null,null,null,0,0,0,0]
[11,null,null,null,"Var Quizzer",0,{"$error":"#DIV/0!"},0,0,null,null,null,null,null,null,null,null,null,null,null,null,null,null,null,null,null,null,null,null,null,null,null,null,null,null,null,null,null,null,null,null,null,null,null,null,null,null,null,null,null,null,0,0,0,0]
[12,null,null,null,"Var Quizzer",0,{"$error":"#DIV/0!"},0,0,null,null,null,null,null,null,null,null,null,null,null,null,null,null,null,null,null,null,null,null,null,null,null,null,null,null,null,null,null,null,null,null,null,null,null,null,null,null,null,null,null,null,0,0,0,0]
[13,null,null,null,"Var Quizzer",0,{"$error":"#DIV/0!"},0,0,null,null,null,null,null,null,null,null,null,null,null,null,null,null,null,null,null,null,null,null,null,null,null,null,null,null,null,null,null,null,null,null,null,null,null,null,null,null,null,null,null,null,0,0,0,0]
[14,null,null,null,"Var Quizzer",0,{"$error":"#DIV/0!"},0,0,null,null,null,null,null,null,null,null,null,null,null,null,null,null,null,null,null,null,null,null,null,null,null,null,null,null,null,null,null,null,null,null,null,null,null,null,null,null,null,null,null,null,0,0,0,0]
[15,null,null,null,"Var Quizzer",0,{"$error":"#DIV/0!"},0,0,null,null,null,null,null,null,null,null,null,null,null,null,null,null,null,null,null,null,null,null,null,null,null,null,null,null,null,null,null,null,null,null,null,null,null,null,null,null,null,null,null,null,0,0,0,0]
[16,null,null,null,"Var Quizzer",0,{"$error":"#DIV/0!"},0,0,null,null,null,null,null,null,null,null,null,null,null,null,null,null,null,null,null,null,null,null,null,null,null,null,null,null,null,null,null,null,null,null,null,null,null,null,null,null,null,null,null,null,0,0,0,0]
[17,null,null,null,"Var Quizzer",0,{"$error":"#DIV/0!"},0,0,null,null,null,null,null,null,null,null,null,null,null,null,null,null,null,null,null,null,null,null,null,null,null,null,null,null,null,null,null,null,null,null,null,null,null,null,null,null,null,null,null,null,0,0,0,0]
[18,null,null,null,"Var Quizzer",0,{"$error":"#DIV/0!"},0,0,null,null,null,null,null,null,null,null,null,null,null,null,null,null,null,null,null,null,null,null,null,null,null,null,null,null,null,null,null,null,null,null,null,null,null,null,null,null,null,null,null,null,0,0,0,0]
[19,null,null,null,"Var Quizzer",0,{"$error":"#DIV/0!"},0,0,null,null,null,null,null,null,null,null,null,null,null,null,null,null,null,null,null,null,null,null,null,null,null,null,null,null,null,null,null,null,null,null,null,null,null,null,null,null,null,null,null,null,0,0,0,0]
[20,null,null,null,"Var Quizzer",0,{"$error":"#DIV/0!"},0,0,null,null,null,null,null,null,null,null,null,null,null,null,null,null,null,null,null,null,null,null,null,null,null,null,null,null,null,null,null,null,null,null,null,null,null,null,null,null,null,null,null,null,0,0,0,0]
[21,null,null,null,"Var Quizzer",{"$f":"SUM(J34+L34+N34+P34+R34+T34+V34+X34+Z34+AB34+AD34+AF34+AH34+AJ34+AL34+AN34+AP34+AR34+AT34+AV34+AX34)","v":0},{"$error":"#DIV/0!"},{"$f":"SUM(K34+M34+O34+Q34+S34+U34+W34+Y34+AA34+AC34+AE34+AG34+AI34+AK34+AM34+AO34+AQ34+AS34+AU34+AW34+AY34)","v":0},0,null,null,null,null,null,null,null,null,null,null,null,null,null,null,null,null,null,null,null,null,null,null,null,null,null,null,null,null,null,null,null,null,null,null,null,null,null,null,null,null,null,null,{"$f":"IF(J34-K34*10>0,1,0)+IF(L34-M34*10>0,1,0)+IF(N34-O34*10>0,1,0)+IF(P34-Q34*10>0,1,0)+IF(R34-S34*10>0,1,0)+IF(T34-U34*10>0,1,0)","v":0},{"$f":"COUNTIF(J34,90)+COUNTIF(L34,90)+COUNTIF(N34,90)+COUNTIF(P34,90)+COUNTIF(R34,90)+COUNTIF(T34,90)","v":0},{"$f":"MAX(J34,L34,N34,P34,R34,T34)","v":0},{"$f":"TRUNC(J34/20,0)+TRUNC(L34/20)+TRUNC(N34/20)+TRUNC(P34/20)+TRUNC(R34/20)+TRUNC(T34/20)","v":0}]
[22,null,null,null,"Var Quizzer",0,{"$error":"#DIV/0!"},0,0,null,null,null,null,null,null,null,null,null,null,null,null,null,null,null,null,null,null,null,null,null,null,null,null,null,null,null,null,null,null,null,null,null,null,null,null,null,null,null,null,null,null,0,0,0,0]
[23,null,null,null,"Var Quizzer",0,{"$error":"#DIV/0!"},0,0,null,null,null,null,null,null,null,null,null,null,null,null,null,null,null,null,null,null,null,null,null,null,null,null,null,null,null,null,null,null,null,null,null,null,null,null,null,null,null,null,null,null,0,0,0,0]
[24,null,null,null,"Var Quizzer",0,{"$error":"#DIV/0!"},0,0,null,null,null,null,null,null,null,null,null,null,null,null,null,null,null,null,null,null,null,null,null,null,null,null,null,null,null,null,null,null,null,null,null,null,null,null,null,null,null,null,null,null,0,0,0,0]
[25,null,null,null,"Var Quizzer",0,{"$error":"#DIV/0!"},0,0,null,null,null,null,null,null,null,null,null,null,null,null,null,null,null,null,null,null,null,null,null,null,null,null,null,null,null,null,null,null,null,null,null,null,null,null,null,null,null,null,null,null,0,0,0,0]
[26,null,null,null,"Var Quizzer",0,{"$error":"#DIV/0!"},0,0,null,null,null,null,null,null,null,null,null,null,null,null,null,null,null,null,null,null,null,null,null,null,null,null,null,null,null,null,null,null,null,null,null,null,null,null,null,null,null,null,null,null,0,0,0,0]
[27,null,null,null,"Var Quizzer",0,{"$error":"#DIV/0!"},0,0,null,null,null,null,null,null,null,null,null,null,null,null,null,null,null,null,null,null,null,null,null,null,null,null,null,null,null,null,null,null,null,null,null,null,null,null,null,null,null,null,null,null,0,0,0,0]
[28,null,null,null,"Var Quizzer",0,{"$error":"#DIV/0!"},0,0,null,null,null,null,null,null,null,null,null,null,null,null,null,null,null,null,null,null,null,null,null,null,null,null,null,null,null,null,null,null,null,null,null,null,null,null,null,null,null,null,null,null,0,0,0,0]
[29,null,null,null,"Var Quizzer",0,{"$error":"#DIV/0!"},0,0,null,null,null,null,null,null,null,null,null,null,null,null,null,null,null,null,null,null,null,null,null,null,null,null,null,null,null,null,null,null,null,null,null,null,null,null,null,null,null,null,null,null,0,0,0,0]
[30,null,null,null,"Var Quizzer",0,{"$error":"#DIV/0!"},0,0,null,null,null,null,null,null,null,null,null,null,null,null,null,null,null,null,null,null,null,null,null,null,null,null,null,null,null,null,null,null,null,null,null,null,null,null,null,null,null,null,null,null,0,0,0,0]
[31,null,null,null,"Var Quizzer",0,{"$error":"#DIV/0!"},0,0,null,null,null,null,null,null,null,null,null,null,null,null,null,null,null,null,null,null,null,null,null,null,null,null,null,null,null,null,null,null,null,null,null,null,null,null,null,null,null,null,null,null,0,0,0,0]
[32,null,null,null,"Var Quizzer",0,{"$error":"#DIV/0!"},0,0,null,null,null,null,null,null,null,null,null,null,null,null,null,null,null,null,null,null,null,null,null,null,null,null,null,null,null,null,null,null,null,null,null,null,null,null,null,null,null,null,null,null,0,0,0,0]
[33,null,null,null,"Var Quizzer",0,{"$f":"SUM(((F46)-(H46*10))/I46)","v":{"$error":"#DIV/0!"}},0,{"$f":"(COUNTA(J46:AY46)/2)","v":0},null,null,null,null,null,null,null,null,null,null,null,null,null,null,null,null,null,null,null,null,null,null,null,null,null,null,null,null,null,null,null,null,null,null,null,null,null,null,null,null,null,null,0,0,0,0]
[34,null,null,null,"Var Quizzer",0,{"$error":"#DIV/0!"},0,0,null,null,null,null,null,null,null,null,null,null,null,null,null,null,null,null,null,null,null,null,null,null,null,null,null,null,null,null,null,null,null,null,null,null,null,null,null,null,null,null,null,null,0,0,0,0]
[35,null,null,null,"Var Quizzer",0,{"$error":"#DIV/0!"},0,0,null,null,null,null,null,null,null,null,null,null,null,null,null,null,null,null,null,null,null,null,null,null,null,null,null,null,null,null,null,null,null,null,null,null,null,null,null,null,null,null,null,null,0,0,0,0]
[36,null,null,null,"Var Quizzer",0,{"$error":"#DIV/0!"},0,0,null,null,null,null,null,null,null,null,null,null,null,null,null,null,null,null,null,null,null,null,null,null,null,null,null,null,null,null,null,null,null,null,null,null,null,null,null,null,null,null,null,null,0,0,0,0]
[37,null,null,null,"Var Quizzer",0,{"$error":"#DIV/0!"},0,0,null,null,null,null,null,null,null,null,null,null,null,null,null,null,null,null,null,null,null,null,null,null,null,null,null,null,null,null,null,null,null,null,null,null,null,null,null,null,null,null,null,null,0,0,0,0]
[38,null,null,null,"Var Quizzer",0,{"$error":"#DIV/0!"},0,0,null,null,null,null,null,null,null,null,null,null,null,null,null,null,null,null,null,null,null,null,null,null,null,null,null,null,null,null,null,null,null,null,null,null,null,null,null,null,null,null,null,null,0,0,0,0]
[39,null,null,null,"Var Quizzer",0,{"$error":"#DIV/0!"},0,0,null,null,null,null,null,null,null,null,null,null,null,null,null,null,null,null,null,null,null,null,null,null,null,null,null,null,null,null,null,null,null,null,null,null,null,null,null,null,null,null,null,null,0,0,0,0]
[40,null,null,null,"Var Quizzer",0,{"$error":"#DIV/0!"},0,0,null,null,null,null,null,null,null,null,null,null,null,null,null,null,null,null,null,null,null,null,null,null,null,null,null,null,null,null,null,null,null,null,null,null,null,null,null,null,null,null,null,null,0,0,0,0]
[41,null,null,null,"Var Quizzer",0,{"$error":"#DIV/0!"},0,0,null,null,null,null,null,null,null,null,null,null,null,null,null,null,null,null,null,null,null,null,null,null,null,null,null,null,null,null,null,null,null,null,null,null,null,null,null,null,null,null,null,null,0,0,0,0]
[42,null,null,null,"Var Quizzer",0,{"$error":"#DIV/0!"},0,0,null,null,null,null,null,null,null,null,null,null,null,null,null,null,null,null,null,null,null,null,null,null,null,null,null,null,null,null,null,null,null,null,null,null,null,null,null,null,null,null,null,null,0,0,0,0]
[43,null,null,null,"Var Quizzer",0,{"$error":"#DIV/0!"},0,0,null,null,null,null,null,null,null,null,null,null,null,null,null,null,null,null,null,null,null,null,null,null,null,null,null,null,null,null,null,null,null,null,null,null,null,null,null,null,null,null,null,null,0,0,0,0]
[44,null,null,null,"Var Quizzer",0,{"$error":"#DIV/0!"},0,0,null,null,null,null,null,null,null,null,null,null,null,null,null,null,null,null,null,null,null,null,null,null,null,null,null,null,null,null,null,null,null,null,null,null,null,null,null,null,null,null,null,null,0,0,0,0]
[45,null,null,null,"Var Quizzer",0,{"$error":"#DIV/0!"},0,0,null,null,null,null,null,null,null,null,null,null,null,null,null,null,null,null,null,null,null,null,null,null,null,null,null,null,null,null,null,null,null,null,null,null,null,null,null,null,null,null,null,null,0,0,0,0]
[46,null,null,null,"Var Quizzer",0,{"$error":"#DIV/0!"},0,0,null,null,null,null,null,null,null,null,null,null,null,null,null,null,null,null,null,null,null,null,null,null,null,null,null,null,null,null,null,null,null,null,null,null,null,null,null,null,null,null,null,null,0,0,0,0]
[47,null,null,null,"Var Quizzer",0,{"$error":"#DIV/0!"},0,0,null,null,null,null,null,null,null,null,null,null,null,null,null,null,null,null,null,null,null,null,null,null,null,null,null,null,null,null,null,null,null,null,null,null,null,null,null,null,null,null,null,null,0,0,0,0]
[48,null,null,null,"Var Quizzer",0,{"$error":"#DIV/0!"},0,0,null,null,null,null,null,null,null,null,null,null,null,null,null,null,null,null,null,null,null,null,null,null,null,null,null,null,null,null,null,null,null,null,null,null,null,null,null,null,null,null,null,null,0,0,0,0]
[49,null,null,null,"Var Quizzer",0,{"$error":"#DIV/0!"},0,0,null,null,null,null,null,null,null,null,null,null,null,null,null,null,null,null,null,null,null,null,null,null,null,null,null,null,null,null,null,null,null,null,null,null,null,null,null,null,null,null,null,null,0,0,0,0]
[50,null,null,null,"Var Quizzer",0,{"$error":"#DIV/0!"},0,0,null,null,null,null,null,null,null,null,null,null,null,null,null,null,null,null,null,null,null,null,null,null,null,null,null,null,null,null,null,null,null,null,null,null,null,null,null,null,null,null,null,null,0,0,0,0]
[51,null,null,null,"Var Quizzer",0,{"$error":"#DIV/0!"},0,0,null,null,null,null,null,null,null,null,null,null,null,null,null,null,null,null,null,null,null,null,null,null,null,null,null,null,null,null,null,null,null,null,null,null,null,null,null,null,null,null,null,null,0,0,0,0]
[52,null,null,null,"Var Quizzer",0,{"$error":"#DIV/0!"},0,0,null,null,null,null,null,null,null,null,null,null,null,null,null,null,null,null,null,null,null,null,null,null,null,null,null,null,null,null,null,null,null,null,null,null,null,null,null,null,null,null,null,null,0,0,0,0]
[]
[]
[]
[null,null,null,null,"Var Quizzer",{"$f":"SUM(J69+L69+N69+P69+R69+T69+V69+X69+Z69+AB69+AD69+AF69+AH69+AJ69+AL69+AN69+AP69+AR69+AT69+AV69+AX69)","v":0},{"$f":"SUM(((F69)-(H69*10))/I69)","v":{"$error":"#DIV/0!"}},{"$f":"SUM(K69+M69+O69+Q69+S69+U69+W69+Y69+AA69+AC69+AE69+AG69+AI69+AK69+AM69+AO69+AQ69+AS69+AU69+AW69+AY69)","v":0},{"$f":"(COUNTA(J69:AY69)/2)","v":0},null,null,null,null,null,null,null,null,null,null,null,null,null,null,null,null,null,null,null,null,null,null,null,null,null,null,null,null,null,null,null,null,null,null,null,null,null,null,null,null,null,null,{"$f":"IF(J69-K69*10>0,1,0)+IF(L69-M69*10>0,1,0)+IF(N69-O69*10>0,1,0)+IF(P69-Q69*10>0,1,0)+IF(R69-S69*10>0,1,0)+IF(T69-U69*10>0,1,0)","v":0},{"$f":"COUNTIF(J69,90)+COUNTIF(L69,90)+COUNTIF(N69,90)+COUNTIF(P69,90)+COUNTIF(R69,90)+COUNTIF(T69,90)","v":0},{"$f":"MAX(J69,L69,N69,P69,R69,T69)","v":0},{"$f":"TRUNC(J69/20,0)+TRUNC(L69/20)+TRUNC(N69/20)+TRUNC(P69/20)+TRUNC(R69/20)+TRUNC(T69/20)","v":0}]

{"sheet":"Variables","index":1,"n_rows":6,"n_cols":5,"rows_kept":6,"cut":false,"hidden":false,"merged":[]}
[null,"Varsity","JV","LL","Total"]
["Teams",12,0,0,{"$f":"SUM(B2:D2)","v":12}]
["Quizzers",52,0,0,{"$f":"SUM(B3:D3)","v":52}]
[]
["Note:","Do not change the location of this worksheet"]
[null,"Do not change the location of any data on this worksheet"]